bitfinex/quotes_BTCUSD_20241216
["timestamp","ask_amount","ask_price","bid_price","bid_amount"]
[1734374523675,0.07857799,107450.0,107430.0,0.0942907]
[1734374524414,0.02857799,107450.0,107430.0,0.0942907]
[1734374524647,0.01357798,107460.0,107430.0,0.0942907]
[1734374524874,0.01357798,107450.0,107430.0,0.1048413]
[1734374525109,0.01357798,107450.0,107440.0,0.0809]
[1734374527111,0.01357798,107450.0,107430.0,0.08246912]
[1734374529604,0.03195641,107470.0,107430.0,0.08246912]
[1734374529806,0.03737482,107460.0,107430.0,0.17675982]
[1734374530011,0.01316655,107460.0,107430.0,0.17675982]
[1734374530197,0.0942907,107470.0,107430.0,0.08246912]
[1734374530685,0.1921307,107470.0,107430.0,0.08246912]
[1734374531303,0.1921307,107470.0,107430.0,0.08112467]
[1734374531518,0.1921307,107470.0,107430.0,0.07977868]
[1734374531758,0.1921307,107470.0,107430.0,0.07931558]
[1734374531977,0.1921307,107470.0,107430.0,0.09213578]
[1734374533866,0.0942907,107460.0,107430.0,0.07931558]
[1734374534058,0.0944637,107460.0,107430.0,0.07931558]
[1734374534473,0.3651037,107460.0,107420.0,8.64e-05]
[1734374534692,0.42491215,107460.0,107420.0,0.00025578]
[1734374535331,0.11523531,107450.0,107420.0,0.00025578]
[1734374535554,0.23636145,107450.0,107420.0,0.00025578]
[1734374537003,0.0942907,107440.0,107420.0,0.00025578]
[1734374538959,0.1921307,107440.0,107420.0,0.00025578]
[1734374539162,0.70984,107430.0,107390.0,0.08]
[1734374539378,0.0942907,107420.0,107390.0,0.08]
[1734374539593,0.43288393,107420.0,107390.0,0.08]
[1734374539799,0.47978393,107420.0,107380.0,0.08]
[1734374540010,0.41478392,107420.0,107380.0,0.1742907]
[1734374541264,0.33134376,107420.0,107380.0,0.1742907]
[1734374541471,0.22515307,107420.0,107380.0,0.1742907]
[1734374541682,0.22515307,107420.0,107380.0,0.19171977]
[1734374542124,0.14474,107420.0,107380.0,0.19171977]
[1734374543197,0.14474,107420.0,107390.0,0.0942907]
[1734374543614,0.0469,107420.0,107390.0,0.0942907]
[1734374543826,0.69926671,107430.0,107390.0,0.0942907]
[1734374544036,0.539,107430.0,107400.0,0.0807]
[1734374544242,0.16559653,107440.0,107410.0,0.0942907]
[1734374544449,0.08222982,107440.0,107410.0,0.0942907]
[1734374544662,0.01722981,107440.0,107410.0,0.0942907]
[1734374545949,1.0902632,107460.0,107420.0,0.0807]
[1734374546155,0.01734914,107450.0,107420.0,0.1749907]
[1734374546361,0.0942907,107450.0,107420.0,0.0807]
[1734374546574,0.1921307,107450.0,107410.0,0.08126665]
[1734374546779,0.1921307,107450.0,107410.0,0.17555735]
[1734374547598,0.2385307,107450.0,107410.0,0.17555735]
[1734374548006,0.2385307,107450.0,107410.0,0.17545735]
[1734374548211,0.33270596,107450.0,107410.0,0.19948299]
[1734374549307,0.23486596,107450.0,107410.0,0.19948299]
[1734374549742,0.16986595,107450.0,107410.0,0.19948299]
[1734374549953,0.07569069,107450.0,107410.0,0.19948299]
[1734374550168,0.0464,107450.0,107410.0,0.19948299]
[1734374550420,0.0464,107450.0,107420.0,0.0942907]
[1734374553838,0.14424,107450.0,107410.0,0.08116665]
[1734374554048,0.14424,107450.0,107410.0,0.17545735]
[1734374554268,0.23841526,107450.0,107410.0,0.17545735]
[1734374554688,0.17341525,107450.0,107410.0,0.17545735]
[1734374555324,0.07923999,107450.0,107410.0,0.17545735]
[1734374555558,0.61823999,107450.0,107410.0,0.17545735]
[1734374556617,0.13813998,107440.0,107420.0,8.64e-05]
[1734374559806,0.07313997,107440.0,107420.0,8.64e-05]
[1734374560230,0.07313997,107440.0,107410.0,0.17544375]
[1734374560381,0.1570767,107440.0,107410.0,0.17544375]
[1734374561461,0.1570767,107440.0,107410.0,0.09474375]
[1734374563133,0.2513674,107440.0,107410.0,0.00045305]
[1734374564380,0.7903674,107440.0,107410.0,0.00045305]
[1734374564597,0.71722743,107440.0,107410.0,0.00045305]
[1734374564806,0.81506743,107440.0,107410.0,0.00045305]
[1734374565398,0.85228951,107440.0,107410.0,0.00045305]
[1734374566238,0.00093121,107430.0,107340.0,0.38674922]
[1734374566453,0.00093121,107430.0,107380.0,0.0942907]
[1734374567290,0.00093121,107430.0,107350.0,0.0239313]
[1734374567291,0.13562999,107440.0,107390.0,0.0942907]
[1734374567503,0.13562999,107440.0,107390.0,0.11981632]
[1734374568123,0.0832,107430.0,107410.0,8.64e-05]
[1734374568365,0.0832,107430.0,107410.0,0.0943771]
[1734374569207,0.1305,107430.0,107410.0,0.0943771]
[1734374569425,0.254953,107430.0,107410.0,8.64e-05]
[1734374569629,0.254953,107430.0,107390.0,0.10402562]
[1734374569831,0.254953,107430.0,107400.0,0.0942907]
[1734374570256,0.254953,107430.0,107390.0,0.0785]
[1734374570466,0.18995299,107430.0,107390.0,0.1727907]
[1734374571084,0.12084,107420.0,107390.0,0.1727907]
[1734374571298,0.12084,107420.0,107400.0,0.02892489]
[1734374571505,0.16498656,107420.0,107390.0,0.1727907]
[1734374572149,0.16498656,107420.0,107390.0,0.19652459]
[1734374572306,0.16498656,107420.0,107390.0,0.1727907]
[1734374572504,0.16498656,107420.0,107390.0,0.17273959]
[1734374573690,0.12084,107420.0,107390.0,0.17273959]
[1734374574492,0.05583999,107420.0,107390.0,0.17273959]
[1734374578453,0.05583999,107420.0,107390.0,0.0942907]
[1734374578659,0.05583999,107420.0,107390.0,0.0941907]
[1734374579610,0.03791074,107420.0,107390.0,0.0941907]
[1734374579813,0.13277763,107420.0,107390.0,0.0941907]
[1734374580020,0.13277763,107420.0,107390.0,0.0942771]
[1734374581814,0.39838897,107430.0,107390.0,0.0942771]
[1734374582025,0.49267967,107430.0,107390.0,0.0942771]
[1734374582445,0.36125153,107430.0,107390.0,0.0942771]
[1734374583505,0.26341153,107430.0,107390.0,0.0942771]
[1734374584105,0.30148459,107430.0,107390.0,0.0942771]
[1734374584560,0.23648458,107430.0,107390.0,0.11188481]
[1734374584975,0.23649246,107430.0,107390.0,0.11188481]
[1734374585625,0.03807306,107430.0,107400.0,0.0455]
[1734374585820,0.00074071,107440.0,107410.0,0.1747907]
[1734374586044,0.00074071,107440.0,107410.0,0.0942907]
[1734374586247,0.00074071,107440.0,107420.0,0.0824]
[1734374586451,0.00074071,107440.0,107430.0,0.0942907]
[1734374586659,0.00074071,107440.0,107430.0,0.11649977]
[1734374588038,0.00074071,107440.0,107420.0,0.1278]
[1734374588237,0.00074071,107440.0,107420.0,0.2220907]
[1734374588905,0.00074071,107440.0,107430.0,0.0942907]
[1734374589577,0.26884618,107470.0,107430.0,0.0942907]
[1734374589801,0.36313688,107470.0,107430.0,0.09485861]
[1734374590004,0.45039882,107470.0,107430.0,0.09485861]
[1734374590563,0.1172907,107460.0,107430.0,0.00056791]
[1734374590767,0.023,107460.0,107430.0,0.00056791]
[1734374591331,0.023,107460.0,107430.0,0.02445702]
[1734374591563,0.023,107460.0,107440.0,0.02388911]
[1734374591770,0.18077407,107460.0,107430.0,0.00056791]
[1734374591978,0.16986534,107460.0,107430.0,0.00056791]
[1734374592174,0.08648337,107460.0,107430.0,0.00056791]
[1734374593025,0.023,107440.0,107430.0,0.00056791]
[1734374593689,0.12084,107440.0,107430.0,0.00056791]
[1734374593907,0.21261127,107440.0,107430.0,0.00056791]
[1734374594369,0.12084,107440.0,107430.0,0.00056791]
[1734374594574,0.05583999,107440.0,107430.0,0.00056791]
[1734374595007,0.15013069,107440.0,107430.0,0.00056791]
[1734374595158,0.01383998,107420.0,107390.0,0.09649411]
[1734374595362,0.01383998,107420.0,107390.0,0.1731771]
[1734374595544,0.10813068,107420.0,107390.0,8.64e-05]
[1734374596763,0.10813068,107420.0,107390.0,0.0270134]
[1734374597813,0.10813068,107420.0,107390.0,8.64e-05]
[1734374599252,0.01383998,107420.0,107390.0,0.1213041]
[1734374599468,0.10801524,107420.0,107400.0,0.026927]
[1734374599678,0.92309493,107430.0,107400.0,0.026927]
[1734374599897,1.01738563,107430.0,107400.0,0.026927]
[1734374600110,0.93023373,107430.0,107400.0,0.026927]
[1734374600538,0.83594303,107430.0,107400.0,0.026927]
[1734374600750,0.75814303,107430.0,107400.0,0.026927]
[1734374600960,0.85231829,107430.0,107400.0,0.026927]
[1734374601816,0.75447829,107430.0,107400.0,0.1212177]
[1734374602273,0.75447829,107430.0,107410.0,0.02584274]
[1734374603146,0.67109632,107430.0,107410.0,0.02592914]
[1734374603352,0.57692106,107430.0,107410.0,0.02592914]
[1734374603598,0.03792106,107430.0,107410.0,0.02592914]
[1734374604017,0.61944939,107440.0,107410.0,0.05285614]
[1734374604234,0.63043141,107440.0,107410.0,8.64e-05]
[1734374604662,0.60242755,107440.0,107410.0,8.64e-05]
[1734374604875,0.69660281,107440.0,107410.0,8.64e-05]
[1734374605736,0.0763,107420.0,107410.0,8.64e-05]
[1734374605947,0.0763,107420.0,107390.0,0.0813864]
[1734374605948,0.1705907,107420.0,107390.0,0.0813864]
[1734374607026,0.0942907,107420.0,107390.0,0.1083134]
[1734374607271,0.0942907,107420.0,107400.0,0.026927]
[1734374607492,0.0942907,107420.0,107390.0,0.0813864]
[1734374607713,0.0942907,107420.0,107390.0,0.08952504]
[1734374607951,0.75571241,107430.0,107390.0,0.18381574]
[1734374608167,0.85000311,107430.0,107390.0,0.18381574]
[1734374608587,0.00460157,107420.0,107390.0,0.18381574]
[1734374608810,0.09889227,107420.0,107390.0,0.0813864]
[1734374609666,0.80844058,107430.0,107390.0,0.1756771]
[1734374609883,0.90273128,107430.0,107390.0,0.1756771]
[1734374610128,0.90273128,107430.0,107390.0,0.0813864]
[1734374610334,0.9150293,107430.0,107390.0,0.0813864]
[1734374611252,0.023,107420.0,107390.0,0.0813864]
[1734374613142,0.0229,107420.0,107390.0,0.0813864]
[1734374613788,0.0228,107420.0,107390.0,0.0813864]
[1734374614626,0.87282929,107430.0,107390.0,0.0813864]
[1734374614827,0.87300209,107430.0,107390.0,0.0813864]
[1734374615037,0.0942907,107420.0,107390.0,0.0813864]
[1734374615250,0.6909802,107420.0,107360.0,0.047]
[1734374615464,0.65854716,107390.0,107330.0,0.045]
[1734374615677,0.0942907,107380.0,107340.0,0.0942907]
[1734374615888,0.80283786,107380.0,107330.0,0.1392907]
[1734374616098,0.80825373,107380.0,107330.0,0.1392907]
[1734374616315,1.03818167,107380.0,107330.0,0.1392907]
[1734374616951,0.8715643,107380.0,107340.0,0.0942907]
[1734374617169,0.8215643,107380.0,107340.0,0.13904533]
[1734374617373,0.50508908,107390.0,107340.0,0.13904533]
[1734374617374,0.74416303,107390.0,107340.0,0.13904533]
[1734374617583,0.539,107390.0,107340.0,0.13904533]
[1734374618048,0.539,107390.0,107340.0,0.11385157]
[1734374618263,0.75416404,107410.0,107360.0,0.082]
[1734374618470,0.01733341,107400.0,107370.0,0.0942907]
[1734374618673,0.54869968,107410.0,107370.0,0.11175823]
[1734374618931,0.54869968,107410.0,107370.0,0.09219736]
[1734374619151,0.539,107410.0,107370.0,0.09219736]
[1734374619373,0.61141019,107410.0,107370.0,0.1096171]
[1734374619600,0.00741018,107410.0,107370.0,0.1096171]
[1734374619817,0.00741018,107410.0,107370.0,0.11018501]
[1734374620027,0.01017541,107410.0,107370.0,0.11018501]
[1734374620435,0.04779814,107410.0,107370.0,0.11018501]
[1734374620637,0.04779814,107410.0,107370.0,0.11008501]
[1734374622563,0.14563814,107410.0,107370.0,0.09266527]
[1734374623661,0.04779814,107410.0,107390.0,0.0785]
[1734374624355,0.04038796,107410.0,107390.0,0.1727907]
[1734374624604,0.13569785,107440.0,107390.0,0.1727907]
[1734374624860,0.13257825,107440.0,107400.0,0.01785698]
[1734374625135,0.00279341,107420.0,107390.0,0.1727907]
[1734374626506,0.00279341,107420.0,107390.0,0.1728771]
[1734374626764,0.09708411,107420.0,107390.0,0.0785864]
[1734374627036,0.1215938,107420.0,107390.0,0.0785864]
[1734374627310,0.00279341,107420.0,107390.0,0.10042094]
[1734374627584,0.00279341,107420.0,107390.0,0.19471164]
[1734374627861,0.00279341,107420.0,107390.0,0.1728771]
[1734374629244,0.0001728,107430.0,107410.0,0.0452]
[1734374629463,0.0001728,107430.0,107410.0,0.06703454]
[1734374630351,0.0001728,107430.0,107410.0,0.24112524]
[1734374630559,0.0001728,107430.0,107410.0,0.24169315]
[1734374630735,0.51246034,107440.0,107410.0,0.24169315]
[1734374630971,0.56486821,107440.0,107410.0,0.24169315]
[1734374631410,0.0173573,107430.0,107420.0,0.11612524]
[1734374631615,0.11105617,107460.0,107420.0,0.11612524]
[1734374631817,0.01735422,107450.0,107420.0,0.11612524]
[1734374632021,0.17757702,107460.0,107420.0,0.11612524]
[1734374632239,0.01735375,107450.0,107420.0,0.11612524]
[1734374632446,0.01949308,107450.0,107420.0,0.11612524]
[1734374632656,0.01949308,107450.0,107410.0,0.12556791]
[1734374632861,0.01735147,107440.0,107410.0,0.21985861]
[1734374633068,0.11378378,107450.0,107410.0,0.21985861]
[1734374633275,0.0173522,107440.0,107410.0,0.21985861]
[1734374633481,0.11650302,107450.0,107410.0,0.21985861]
[1734374633697,0.01735166,107440.0,107410.0,0.21985861]
[1734374633911,0.01338547,107440.0,107410.0,0.21985861]
[1734374634119,0.11650302,107450.0,107410.0,0.21985861]
[1734374634532,0.01735312,107440.0,107410.0,0.21985861]
[1734374634749,0.11650302,107450.0,107410.0,0.21985861]
[1734374634966,0.01735311,107440.0,107410.0,0.21985861]
[1734374635144,0.11650302,107450.0,107410.0,0.21985861]
[1734374635353,0.01735598,107440.0,107410.0,0.24184447]
[1734374635556,0.19961654,107450.0,107410.0,0.24184447]
[1734374635773,0.01735559,107440.0,107410.0,0.21985861]
[1734374635973,0.19961654,107450.0,107410.0,0.21985861]
[1734374636392,0.11650302,107450.0,107410.0,0.21985861]
[1734374636602,0.19961654,107450.0,107410.0,0.21985861]
[1734374636811,0.19968433,107450.0,107410.0,0.21985861]
[1734374637646,0.11650302,107450.0,107410.0,0.21985861]
[1734374637849,0.19968433,107450.0,107410.0,0.21985861]
[1734374638048,0.11650302,107450.0,107410.0,0.21985861]
[1734374638252,0.23814397,107450.0,107410.0,0.21985861]
[1734374638665,0.023,107440.0,107410.0,0.21985861]
[1734374638869,0.0491144,107440.0,107410.0,0.12556791]
[1734374639282,0.0491144,107440.0,107410.0,0.00056791]
[1734374639495,0.35768641,107440.0,107410.0,0.00056791]
[1734374639705,0.023,107420.0,107410.0,0.00056791]
[1734374639917,0.1172907,107420.0,107410.0,0.00056791]
[1734374640120,0.13401977,107420.0,107410.0,0.00056791]
[1734374640536,0.1172907,107420.0,107410.0,0.00056791]
[1734374641164,0.20053298,107420.0,107410.0,0.00056791]
[1734374641616,0.023,107420.0,107410.0,0.00056791]
[1734374641816,0.10624228,107430.0,107410.0,0.00056791]
[1734374642022,0.2311057,107430.0,107410.0,0.00056791]
[1734374642435,0.10624228,107430.0,107410.0,0.00056791]
[1734374642638,0.2311057,107430.0,107410.0,0.00056791]
[1734374642844,0.32528096,107430.0,107410.0,0.00056791]
[1734374643055,0.002481,107420.0,107410.0,0.00056791]
[1734374644504,0.04372327,107430.0,107410.0,0.00056791]
[1734374644717,0.023,107430.0,107410.0,0.00056791]
[1734374645748,0.023,107430.0,107410.0,0.17996401]
[1734374646376,0.023,107430.0,107410.0,0.00056791]
[1734374646582,0.04539673,107430.0,107410.0,0.00056791]
[1734374647012,0.0827157,107430.0,107410.0,0.00056791]
[1734374647637,0.20756855,107430.0,107410.0,0.00056791]
[1734374648050,0.1172907,107420.0,107410.0,0.00056791]
[1734374648266,0.023,107410.0,107390.0,0.11450499]
[1734374648478,0.023,107410.0,107390.0,0.29390109]
[1734374648701,0.00056791,107420.0,107400.0,0.28215596]
[1734374648912,0.00056791,107420.0,107410.0,0.2612961]
[1734374649540,0.4127097,107450.0,107410.0,0.2612961]
[1734374649774,0.01742246,107440.0,107410.0,0.0819]
[1734374650008,0.2890083,107440.0,107410.0,0.0819]
[1734374650218,0.023,107430.0,107410.0,0.2014813]
[1734374650669,0.0231728,107430.0,107410.0,0.2014813]
[1734374652369,0.0231728,107430.0,107420.0,0.1195813]
[1734374652580,0.0231728,107430.0,107410.0,0.0819]
[1734374652783,0.03492483,107430.0,107410.0,0.2014813]
[1734374653004,0.103,107400.0,107390.0,8.64e-05]
[1734374653421,0.83032331,107420.0,107390.0,0.2139584]
[1734374653631,0.539,107420.0,107400.0,0.1195813]
[1734374653852,0.539,107420.0,107400.0,0.213872]
[1734374654080,0.12504806,107430.0,107400.0,0.213872]
[1734374654081,0.0231728,107430.0,107400.0,0.0942907]
[1734374654291,0.1174635,107430.0,107400.0,0.02794596]
[1734374654516,0.05246349,107430.0,107400.0,0.00056791]
[1734374654722,0.01738156,107420.0,107400.0,0.00056791]
[1734374654969,0.01738382,107410.0,107400.0,0.00056791]
[1734374655503,0.30241548,107420.0,107400.0,0.00056791]
[1734374655803,0.35241548,107410.0,107400.0,0.00056791]
[1734374656007,0.81787613,107410.0,107400.0,0.00056791]
[1734374656216,1.09812027,107410.0,107400.0,0.00056791]
[1734374656628,1.07112027,107410.0,107400.0,0.00056791]
[1734374657293,1.0385033,107410.0,107400.0,0.00056791]
[1734374657501,0.83037786,107410.0,107400.0,0.00056791]
[1734374657717,1.0385033,107410.0,107400.0,0.00056791]
[1734374657963,0.83035578,107410.0,107400.0,0.00056791]
[1734374658230,0.539,107410.0,107400.0,0.00056791]
[1734374658477,0.6029,107410.0,107400.0,0.00056791]
[1734374658988,0.539,107410.0,107400.0,0.00056791]
[1734374659239,0.62221958,107410.0,107400.0,0.00056791]
[1734374659788,0.68204895,107410.0,107400.0,0.00056791]
[1734374660060,0.55721957,107410.0,107400.0,0.00056791]
[1734374660639,0.42448813,107420.0,107400.0,0.00056791]
[1734374660864,0.44651492,107420.0,107400.0,0.00056791]
[1734374661276,0.61295409,107420.0,107400.0,0.00056791]
[1734374661695,0.51877883,107420.0,107400.0,0.00056791]
[1734374661951,0.10058615,107410.0,107400.0,0.00056791]
[1734374662182,0.08321958,107410.0,107400.0,0.00056791]
[1734374662422,0.41361721,107420.0,107400.0,0.00065431]
[1734374662658,0.01736498,107410.0,107400.0,0.00065431]
[1734374662896,0.41275928,107420.0,107400.0,0.00065431]
[1734374663129,0.01736353,107410.0,107400.0,0.00065431]
[1734374663358,0.41275928,107420.0,107400.0,0.00065431]
[1734374663633,0.01736113,107410.0,107400.0,0.00065431]
[1734374663864,0.56327906,107420.0,107400.0,0.00065431]
[1734374664089,0.01736038,107410.0,107400.0,0.00065431]
[1734374664303,0.56327906,107420.0,107400.0,0.00065431]
[1734374664537,0.26075886,107420.0,107400.0,0.00065431]
[1734374664763,0.1665836,107420.0,107400.0,0.00065431]
[1734374665150,0.01735919,107410.0,107400.0,0.00065431]
[1734374665349,0.3748131,107420.0,107400.0,0.00065431]
[1734374665576,0.01735859,107410.0,107400.0,0.00065431]
[1734374665792,0.1665836,107420.0,107400.0,0.00065431]
[1734374666008,0.01735845,107410.0,107400.0,0.00065431]
[1734374666217,0.26075886,107420.0,107400.0,0.00065431]
[1734374666417,0.01735988,107410.0,107400.0,0.00065431]
[1734374666621,0.19435945,107420.0,107400.0,0.00065431]
[1734374666827,0.0173599,107410.0,107400.0,0.00065431]
[1734374667037,0.19435942,107420.0,107400.0,0.00065431]
[1734374667240,0.01736273,107410.0,107400.0,0.00065431]
[1734374667453,0.4248131,107420.0,107400.0,0.00065431]
[1734374667658,0.01736241,107410.0,107400.0,0.00065431]
[1734374667858,0.51898836,107420.0,107400.0,0.00065431]
[1734374668125,0.01736316,107410.0,107400.0,0.00065431]
[1734374668391,0.71111906,107420.0,107400.0,0.00065431]
[1734374668652,0.61327906,107420.0,107400.0,0.00065431]
[1734374668889,0.01736601,107410.0,107400.0,0.00065431]
[1734374669130,0.023,107410.0,107400.0,0.00065431]
[1734374669390,0.07526304,107410.0,107400.0,0.00065431]
[1734374669627,1.13727905,107420.0,107400.0,0.00065431]
[1734374669881,0.01736858,107410.0,107400.0,0.00065431]
[1734374670118,0.37467493,107420.0,107400.0,0.40064838]
[1734374670361,0.20703332,107430.0,107400.0,0.09715581]
[1734374670629,0.08799952,107430.0,107400.0,0.0942907]
[1734374670871,0.01736605,107420.0,107400.0,0.0942907]
[1734374671104,0.44881241,107430.0,107390.0,8.64e-05]
[1734374671317,0.01793475,107420.0,107390.0,0.0943771]
[1734374671532,0.01736684,107410.0,107390.0,0.0943771]
[1734374671759,0.03093434,107410.0,107390.0,0.0943771]
[1734374671987,0.12545436,107420.0,107390.0,8.64e-05]
[1734374672218,0.01736822,107410.0,107390.0,8.64e-05]
[1734374672471,0.35299381,107420.0,107390.0,8.64e-05]
[1734374672734,0.01736853,107410.0,107390.0,8.64e-05]
[1734374672999,0.03703623,107410.0,107390.0,8.64e-05]
[1734374673472,0.35297426,107420.0,107390.0,8.64e-05]
[1734374673719,0.35297426,107420.0,107380.0,0.1284864]
[1734374673955,0.01736784,107410.0,107380.0,0.2227771]
[1734374674206,0.35297426,107420.0,107380.0,0.2227771]
[1734374674456,0.35297426,107420.0,107380.0,0.0942907]
[1734374674709,0.3778506,107420.0,107380.0,0.0942907]
[1734374675192,0.3778506,107420.0,107390.0,8.64e-05]
[1734374676509,0.30240635,107420.0,107390.0,8.64e-05]
[1734374677037,0.30240635,107420.0,107370.0,0.11966057]
[1734374677296,0.38490635,107420.0,107370.0,0.20500598]
[1734374677557,0.38490635,107420.0,107380.0,0.0798]
[1734374678048,0.26003696,107420.0,107380.0,0.29375127]
[1734374678295,0.35421222,107420.0,107380.0,0.34457885]
[1734374678571,0.35421222,107420.0,107390.0,0.11966057]
[1734374678572,0.09784,107410.0,107390.0,0.11966057]
[1734374678824,0.0942907,107420.0,107390.0,0.11966057]
[1734374679566,0.02929069,107420.0,107390.0,0.11966057]
[1734374679803,0.95250281,107430.0,107390.0,0.11966057]
[1734374680047,1.04385747,107430.0,107390.0,0.00056791]
[1734374680284,1.13803273,107430.0,107390.0,0.00056791]
[1734374681277,0.99385747,107430.0,107390.0,0.00056791]
[1734374681533,0.99385747,107430.0,107400.0,0.25965127]
[1734374681534,0.20285739,107430.0,107400.0,0.25965127]
[1734374682029,0.11961113,107430.0,107400.0,0.25965127]
[1734374682768,0.04051113,107430.0,107400.0,0.33625127]
[1734374683244,0.12375739,107430.0,107400.0,0.2165907]
[1734374683485,0.09467306,107430.0,107400.0,0.2165907]
[1734374683735,0.09467306,107430.0,107400.0,0.33625127]
[1734374684009,0.04051113,107430.0,107400.0,0.33625127]
[1734374684812,0.13735738,107440.0,107400.0,0.33625127]
[1734374685056,0.23164808,107440.0,107400.0,0.33625127]
[1734374685769,0.08324626,107430.0,107400.0,0.33625127]
[1734374686011,0.08324626,107430.0,107400.0,0.2165907]
[1734374686248,0.13554726,107430.0,107400.0,0.2165907]
[1734374686541,0.22983796,107430.0,107400.0,0.1223]
[1734374686789,0.35470735,107430.0,107400.0,0.1223]
[1734374687784,0.3549443,107430.0,107400.0,0.1223]
[1734374688025,0.3551171,107430.0,107400.0,0.1223]
[1734374688548,0.2085254,107430.0,107400.0,0.24085219]
[1734374688870,0.2085254,107430.0,107400.0,0.36051276]
[1734374689116,0.21126927,107430.0,107400.0,0.36051276]
[1734374689674,0.21126927,107430.0,107400.0,0.2165907]
[1734374690215,0.14626926,107430.0,107400.0,0.2165907]
[1734374692673,0.36022053,107430.0,107390.0,0.08235431]
[1734374693165,0.7169142,107430.0,107390.0,0.17664501]
[1734374693168,0.14238289,107420.0,107390.0,0.17664501]
[1734374693558,0.19844011,107420.0,107390.0,0.17664501]
[1734374694475,0.1334401,107420.0,107390.0,0.17664501]
[1734374694929,0.0942907,107410.0,107390.0,0.00065431]
[1734374695705,0.26097279,107410.0,107390.0,0.00065431]
[1734374695951,0.26105327,107410.0,107390.0,0.00065431]
[1734374696196,0.31979112,107420.0,107390.0,0.19991488]
[1734374696466,0.01737704,107410.0,107390.0,0.22470637]
[1734374696716,0.0796,107420.0,107390.0,0.19991488]
[1734374697413,0.45753246,107430.0,107390.0,0.29420558]
[1734374697629,0.01737678,107420.0,107390.0,0.19991488]
[1734374697852,0.60182316,107430.0,107390.0,0.29420558]
[1734374698069,0.01737537,107420.0,107390.0,0.19991488]
[1734374698280,0.06191985,107420.0,107390.0,0.17454501]
[1734374699572,0.16676257,107420.0,107390.0,0.17454501]
[1734374700219,0.0834004,107410.0,107390.0,0.17454501]
[1734374700725,0.08325959,107410.0,107390.0,0.17454501]
[1734374700940,0.16676257,107420.0,107390.0,0.17454501]
[1734374702060,0.46950649,107420.0,107390.0,0.00065431]
[1734374703406,0.01738435,107410.0,107390.0,0.00065431]
[1734374703622,0.38618462,107410.0,107390.0,0.00065431]
[1734374704277,0.46358462,107410.0,107390.0,0.00065431]
[1734374704508,0.39858461,107410.0,107390.0,0.00065431]
[1734374704737,0.60703783,107410.0,107390.0,0.00065431]
[1734374705199,0.26217438,107400.0,107390.0,0.00065431]
[1734374705424,0.33908262,107400.0,107390.0,0.00065431]
[1734374705646,0.62868053,107400.0,107390.0,0.00065431]
[1734374705875,0.62868053,107400.0,107350.0,0.0766]
[1734374705876,1.16780108,107400.0,107350.0,0.0766]
[1734374706091,0.12514869,107380.0,107350.0,0.10117606]
[1734374706325,0.21943939,107380.0,107350.0,0.10117606]
[1734374706553,0.0942907,107380.0,107350.0,0.10117606]
[1734374706774,0.21943939,107380.0,107350.0,0.10117606]
[1734374706983,0.0942907,107380.0,107350.0,0.10117606]
[1734374707199,0.21943939,107380.0,107350.0,0.0766]
[1734374707689,0.0942907,107380.0,107350.0,0.0766]
[1734374708440,0.0942907,107380.0,107350.0,0.0765]
[1734374709673,0.12514869,107390.0,107350.0,0.29045127]
[1734374709887,0.21943939,107390.0,107350.0,0.29045127]
[1734374710112,0.21943939,107390.0,107350.0,0.29053767]
[1734374710327,0.12514869,107390.0,107360.0,0.21395127]
[1734374710543,0.74721625,107400.0,107360.0,0.0942907]
[1734374710764,0.0833264,107390.0,107360.0,0.0942907]
[1734374711003,0.74804265,107400.0,107370.0,0.16676057]
[1734374711222,0.08389396,107400.0,107380.0,0.0942907]
[1734374711461,0.08389396,107400.0,107380.0,0.0818]
[1734374711462,0.00056756,107400.0,107380.0,0.0818]
[1734374712767,0.03832454,107400.0,107380.0,0.0818]
[1734374712980,0.00056756,107400.0,107380.0,0.0818]
[1734374713394,0.00056756,107400.0,107370.0,0.1268]
[1734374713606,0.00056756,107400.0,107370.0,0.2210907]
[1734374713826,0.08389396,107400.0,107370.0,0.2210907]
[1734374714046,0.00056756,107400.0,107370.0,0.2210907]
[1734374714682,0.08610212,107410.0,107370.0,0.2210907]
[1734374714943,0.18039282,107410.0,107370.0,0.22165826]
[1734374715145,0.18039282,107410.0,107370.0,0.25579014]
[1734374715377,0.18039282,107410.0,107370.0,0.22165826]
[1734374715807,0.18039282,107410.0,107370.0,0.34131883]
[1734374716490,0.21847077,107410.0,107370.0,0.34131883]
[1734374716713,0.12418007,107410.0,107370.0,0.34131883]
[1734374716930,0.12418007,107410.0,107370.0,0.39055013]
[1734374717145,0.21847077,107410.0,107370.0,0.26049654]
[1734374718437,0.21847077,107410.0,107370.0,0.22165826]
[1734374718659,0.081,107400.0,107370.0,0.22165826]
[1734374719507,0.01599999,107400.0,107370.0,0.22165826]
[1734374720578,0.01599999,107400.0,107370.0,0.12736756]
[1734374721895,0.01599999,107400.0,107370.0,0.24711453]
[1734374722101,0.01599999,107400.0,107370.0,0.25994339]
[1734374722314,0.87686496,107410.0,107380.0,0.09861312]
[1734374722558,0.66335287,107410.0,107380.0,0.0942907]
[1734374723421,0.75764357,107410.0,107370.0,0.01282886]
[1734374723631,0.75764357,107410.0,107370.0,0.21395127]
[1734374723860,0.21864357,107410.0,107370.0,0.21395127]
[1734374724071,0.21863419,107410.0,107370.0,0.21395127]
[1734374724504,0.15363418,107410.0,107370.0,0.21827369]
[1734374724721,0.15363418,107410.0,107380.0,0.11966057]
[1734374724940,0.15363418,107410.0,107380.0,0.14148794]
[1734374725158,0.15363418,107410.0,107380.0,0.02182737]
[1734374725369,0.19190046,107410.0,107380.0,0.02182737]
[1734374725592,0.12156294,107410.0,107380.0,0.23793985]
[1734374725808,0.03826628,107410.0,107390.0,0.00432242]
[1734374726022,0.03826628,107410.0,107380.0,0.21395127]
[1734374726023,0.03826628,107410.0,107380.0,0.0942907]
[1734374726241,0.08329666,107410.0,107380.0,0.22378069]
[1734374726481,0.00031085,107400.0,107380.0,0.30148069]
[1734374726695,0.00031085,107400.0,107380.0,0.18182012]
[1734374728030,0.00031085,107400.0,107380.0,0.30148069]
[1734374728466,0.00031085,107400.0,107380.0,0.18182012]
[1734374729339,0.00031085,107400.0,107380.0,0.1719907]
[1734374729549,0.31205877,107420.0,107380.0,0.1719907]
[1734374730210,0.35051412,107420.0,107380.0,0.1719907]
[1734374731321,0.47545911,107420.0,107380.0,0.1719907]
[1734374732316,0.35051412,107420.0,107380.0,0.1719907]
[1734374732555,0.35051412,107420.0,107380.0,0.19883617]
[1734374732792,0.08,107400.0,107380.0,0.19883617]
[1734374734038,0.08,107400.0,107380.0,0.1719907]
[1734374734775,0.01499999,107400.0,107380.0,0.1719907]
[1734374735331,0.01499999,107400.0,107380.0,0.21905466]
[1734374736611,0.01499999,107400.0,107380.0,0.14135466]
[1734374736945,0.01499999,107400.0,107390.0,0.21815466]
[1734374737134,0.01499999,107400.0,107390.0,0.28617013]
[1734374737626,0.0001728,107420.0,107410.0,0.04706396]
[1734374737898,0.0001728,107420.0,107410.0,0.22075466]